[Event "FIDE World Junior U20-ch Girls 2025"]
[Site "Petrovac"]
[Date "2025.03.02"]
[Round "6.30"]
[White "Trifoi, Mihaela-Ioana"]
[Black "Peglau, Charis"]
[Result "0-1"]
[Annotator "ChessBase"]
[ECO "C02"]
[WhiteElo "1990"]
[BlackElo "2203"]
[PlyCount "62"]
[EventDate "2025.02.23"]
[EventType "swiss"]
[EventCountry "MNE"]
[SourceTitle "playchess.com"]
[Source "ChessBase"]
[SourceQuality "1"]
[TimeControl "40/5400+30:1800+30"]

1. e4 {[%emt 0:00:03]} e6 {[%emt 0:00:04]} 2. d4 {[%emt 0:00:23]} d5 {[%emt 0:00:06]} 3. e5 {[%emt 0:00:06]} c5 {[%emt 0:00:05]} 4. c3 {[%emt 0:00:05]} Bd7 {[%emt 0:00:06]} 5. Nf3 {[%emt 0:00:28]} Qb6 {[%emt 0:00:10]} 6. Be2 {[%emt 0:03:19]} cxd4 {[%emt 0:00:44]} 7. cxd4 {[%emt 0:02:02]} Bb5 {[%emt 0:00:18]} 8. Nc3 {[%emt 0:04:24]} Bxe2 {[%emt 0:03:00]} 9. Qxe2 {[%emt 0:01:46]} Nc6 {[%emt 0:02:35]} 10. O-O {[%emt 0:02:30]} Nge7 {[%emt 0:00:56]} 11. Be3 {[%emt 0:09:26]} Nf5 {[%emt 0:01:47]} 12. Rfd1 {[%emt 0:04:16]} Be7 {[%emt 0:02:04]} 13. a3 {[%emt 0:06:16]} Na5 {[%emt 0:10:21]} 14. Nd2 {[%emt 0:12:03]} Rc8 {[%emt 0:07:48]} 15. Na4 {[%emt 0:10:09]} Qc6 {[%emt 0:07:35]} 16. Rac1 {[%emt 0:03:16]} Qxc1 {[%emt 0:04:16]} 17. Rxc1 {[%emt 0:00:05]} Rxc1+ {[%emt 0:00:01]} 18. Nf1 {[%emt 0:00:08]} Nxe3 {[%emt 0:08:39]} 19. Qb5+ {[%emt 0:02:56]} Nc6 {[%emt 0:01:33]} 20. fxe3 {[%emt 0:00:19]} O-O {[%emt 0:03:48]} 21. Nc3 {[%emt 0:04:08]} f6 {[%emt 0:07:45]} 22. Ne2 {[%emt 0:01:52]} Ra1 {[%emt 0:03:55]} 23. h3 {[%emt 0:08:41]} fxe5 {[%emt 0:01:00]} 24. Neg3 {[%emt 0:00:17]} exd4 {[%emt 0:03:14]} 25. Kh2 {[%emt 0:02:10]} Bd6 {[%emt 0:06:40]} 26. Qxb7 {[%emt 0:06:37]} Nd8 {[%emt 0:05:11]} 27. Qd7 {[%emt 0:10:11]} Bb8 {[%emt 0:00:33]} 28. Qc8 {[%emt 0:00:40]} Nf7 {[%emt 0:04:48]} 29. Qa6 {[%emt 0:02:23]} Ng5 {[%emt 0:00:14]} 30. Nd2 {[%emt 0:02:38]} dxe3 {[%emt 0:00:37]} 31. Nf3 {[%emt 0:02:07]} e2 {[%emt 0:02:39]} 0-1

[Event "FIDE World Junior U20-ch Girls 2025"]
[Site "Petrovac"]
[Date "2025.03.02"]
[Round "6.31"]
[White "Abdinova, Narmin"]
[Black "Zelbova, Lada"]
[Result "0-1"]
[Annotator "ChessBase"]
[ECO "E04"]
[WhiteElo "2186"]
[BlackElo "1994"]
[PlyCount "120"]
[EventDate "2025.02.23"]
[EventType "swiss"]
[EventCountry "MNE"]
[SourceTitle "playchess.com"]
[Source "ChessBase"]
[SourceQuality "1"]
[TimeControl "40/5400+30:1800+30"]

1. d4 {[%emt 0:00:04]} Nf6 {[%emt 0:00:28]} 2. c4 {[%emt 0:00:06]} e6 {[%emt 0:00:11]} 3. g3 {[%emt 0:00:07]} d5 {[%emt 0:00:23]} 4. Bg2 {[%emt 0:00:35]} dxc4 {[%emt 0:04:28]} 5. Nf3 {[%emt 0:01:04]} c5 {[%emt 0:01:45]} 6. Nc3 {[%emt 0:03:01]} Nc6 {[%emt 0:01:51]} 7. dxc5 {[%emt 0:06:26]} Qxd1+ {[%emt 0:01:44]} 8. Nxd1 {[%emt 0:00:08]} Bxc5 {[%emt 0:04:31]} 9. Be3 {[%emt 0:01:20]} Bb4+ {[%emt 0:01:48]} 10. Bd2 {[%emt 0:01:02]} O-O {[%emt 0:01:45]} 11. Rc1 {[%emt 0:02:31]} Bd7 {[%emt 0:05:43]} 12. Rxc4 {[%emt 0:09:45]} Bxd2+ {[%emt 0:02:04]} 13. Nxd2 {[%emt 0:00:07]} Rfd8 {[%emt 0:06:23]} 14. Nb3 {[%emt 0:07:01]} Rac8 {[%emt 0:10:04]} 15. Nc3 {[%emt 0:09:13]} Ne5 {[%emt 0:02:54]} 16. Rd4 {[%emt 0:05:06]} Bc6 {[%emt 0:02:30]} 17. f3 {[%emt 0:02:15]} Nd5 {[%emt 0:04:20]} 18. Kf2 {[%emt 0:06:12]} Nxc3 {[%emt 0:04:16]} 19. bxc3 {[%emt 0:00:06]} Kf8 {[%emt 0:03:47]} 20. Na5 {[%emt 0:12:37]} Bd5 {[%emt 0:13:05]} 21. Rhd1 {[%emt 0:15:16]} Ke7 {[%emt 0:00:23]} 22. e4 {[%emt 0:11:39]} Bxa2 {[%emt 0:02:13]} 23. R1d2 {[%emt 0:01:37]} Bc4 {[%emt 0:03:00]} 24. Nxb7 {[%emt 0:00:29]} Rxd4 {[%emt 0:05:14]} 25. cxd4 {[%emt 0:00:03]} Nd3+ {[%emt 0:00:53]} 26. Ke3 {[%emt 0:00:47]} Ba6 {[%emt 0:01:07]} 27. Ra2 {[%emt 0:04:08]} Nb4 {[%emt 0:02:18]} 28. Rb2 {[%emt 0:01:01]} Rc3+ {[%emt 0:01:21]} 29. Kd2 {[%emt 0:00:00]} Rd3+ {[%emt 0:01:00]} 30. Kc1 {[%emt 0:00:01]} Rxd4 {[%emt 0:01:06]} 31. Nc5 {[%emt 0:00:01]} Rc4+ {[%emt 0:03:33]} 32. Kd2 {[%emt 0:00:32]} Rxc5 {[%emt 0:00:30]} 33. Rxb4 {[%emt 0:00:02]} Bb5 {[%emt 0:00:57]} 34. Rb1 {[%emt 0:01:08]} a5 {[%emt 0:00:51]} 35. Bf1 {[%emt 0:00:55]} Bxf1 {[%emt 0:00:22]} 36. Rxf1 {[%emt 0:00:01]} Kd6 {[%emt 0:02:30]} 37. Ra1 {[%emt 0:01:16]} Kc6 {[%emt 0:00:15]} 38. Kd3 {[%emt 0:00:37]} Kb6 {[%emt 0:00:27]} 39. f4 {[%emt 0:00:55]} Rb5 {[%emt 0:00:56]} 40. Kc3 {[%emt 0:00:36]} Rb4 {[%emt 0:00:33]} 41. e5 {[%emt 0:03:26]} Kb5 {[%emt 0:01:26]} 42. Rd1 {[%emt 0:00:41]} Rc4+ {[%emt 0:05:00]} 43. Kb2 {[%emt 0:00:34]} Rc7 {[%emt 0:03:40]} 44. Rd8 {[%emt 0:00:34]} Rb7 {[%emt 0:03:03]} 45. Ka3 {[%emt 0:01:40]} h5 {[%emt 0:00:30]} 46. h3 {[%emt 0:07:19]} g6 {[%emt 0:00:57]} 47. Rd1 {[%emt 0:03:47]} Kc4 {[%emt 0:03:33]} 48. Ka4 {[%emt 0:02:59]} Rb3 {[%emt 0:00:54]} 49. Rd7 {[%emt 0:00:28]} Rxg3 {[%emt 0:00:43]} 50. Rxf7 {[%emt 0:00:05]} Rxh3 {[%emt 0:00:33]} 51. Rf6 {[%emt 0:00:19]} Rf3 {[%emt 0:00:38]} 52. Kxa5 {[%emt 0:07:28]} Kd5 {[%emt 0:01:26]} 53. Kb6 {[%emt 0:01:17]} Rg3 {[%emt 0:04:34]} 54. Kc7 {[%emt 0:01:15]} g5 {[%emt 0:01:26]} 55. fxg5 {[%emt 0:01:15]} Rxg5 {[%emt 0:00:22]} 56. Rh6 {[%emt 0:00:19]} Kxe5 {[%emt 0:02:01]} 57. Kd7 {[%emt 0:00:19]} Kf5 {[%emt 0:00:31]} 58. Kd6 {[%emt 0:02:21]} e5 {[%emt 0:00:56]} 59. Kd5 {[%emt 0:00:06]} Kf4 {[%emt 0:01:30]} 60. Rh8 {[%emt 0:00:28]} Ke3 {[%emt 0:00:55]} 0-1

[Event "FIDE World Junior U20-ch Girls 2025"]
[Site "Petrovac"]
[Date "2025.03.02"]
[Round "6.32"]
[White "Ostensson, Julia"]
[Black "Peglau, Dora"]
[Result "0-1"]
[Annotator "NA"]
[ECO "D37"]
[WhiteElo "1979"]
[BlackElo "2134"]
[PlyCount "70"]
[EventDate "2025.02.23"]
[EventType "swiss"]
[EventCountry "MNE"]
[SourceTitle "playchess.com"]
[Source "ChessBase"]
[SourceQuality "1"]
[TimeControl "40/5400+30:1800+30"]

1. d4 {[%emt 0:00:03]} Nf6 {[%emt 0:00:21]} 2. c4 {[%emt 0:00:05]} e6 {[%emt 0:00:05]} 3. Nf3 {[%emt 0:00:04]} d5 {[%emt 0:00:09]} 4. Nc3 {[%emt 0:00:05]} a6 {[%emt 0:01:13]} 5. cxd5 {[%emt 0:00:04]} exd5 {[%emt 0:00:07]} 6. Bg5 {[%emt 0:00:06]} Be7 {[%emt 0:00:33]} 7. e3 {[%emt 0:00:05]} c6 {[%emt 0:04:35]} 8. Bd3 {[%emt 0:02:43]} O-O {[%emt 0:01:17]} 9. h3 {[%emt 0:00:17]} Ne4 {[%emt 0:04:00]} 10. Bxe7 {[%emt 0:06:45]} Qxe7 {[%emt 0:00:06]} 11. Qc2 {[%emt 0:09:08]} f5 {[%emt 0:02:21]} 12. O-O-O {[%emt 0:11:12]} b5 {[%emt 0:09:31]} 13. Ne5 {[%emt 0:00:20]} a5 {[%emt 0:07:01]} 14. f3 {[%emt 0:08:31]} Nd6 {[%emt 0:03:22]} 15. g4 {[%emt 0:03:52]} Nc4 {[%emt 0:03:50]} 16. gxf5 {[%emt 0:20:06]} Nxe5 {[%emt 0:09:58]} 17. dxe5 {[%emt 0:00:08]} Qxe5 {[%emt 0:00:06]} 18. e4 {[%emt 0:12:12]} Na6 {[%emt 0:05:28]} 19. Qd2 {[%emt 0:01:30]} d4 {[%emt 0:08:47]} 20. Ne2 {[%emt 0:00:26]} Nb4 {[%emt 0:00:22]} 21. Kb1 {[%emt 0:00:37]} Nxd3 {[%emt 0:00:55]} 22. Qxd3 {[%emt 0:00:06]} c5 {[%emt 0:01:05]} 23. f4 {[%emt 0:15:58]} Qe8 {[%emt 0:07:50]} 24. Rc1 {[%emt 0:00:45]} Bb7 {[%emt 0:06:33]} 25. Ng3 {[%emt 0:00:38]} c4 {[%emt 0:09:22]} 26. Qxd4 {[%emt 0:00:38]} Rd8 {[%emt 0:01:06]} 27. Qe5 {[%emt 0:00:44]} Qd7 {[%emt 0:02:28]} 28. Nh5 {[%emt 0:06:45]} Rde8 {[%emt 0:01:30]} 29. Rhd1 {[%emt 0:00:34]} Bxe4+ {[%emt 0:03:06]} 30. Ka1 {[%emt 0:00:05]} Qf7 {[%emt 0:03:42]} 31. Qxb5 {[%emt 0:00:46]} Qxh5 {[%emt 0:00:01]} 32. Qxc4+ {[%emt 0:00:11]} Qf7 {[%emt 0:00:42]} 33. Qc3 {[%emt 0:00:19]} Bxf5 {[%emt 0:00:50]} 34. Qxa5 {[%emt 0:00:56]} Ra8 {[%emt 0:00:25]} 35. Qd5 {[%emt 0:00:55]} Be6 {[%emt 0:00:30]} 0-1

[Event "FIDE World Junior U20-ch Girls 2025"]
[Site "Petrovac"]
[Date "2025.03.02"]
[Round "6.33"]
[White "Mrittika Mallick"]
[Black "Beber, Anja"]
[Result "1/2-1/2"]
[Annotator "NA"]
[ECO "C50"]
[WhiteElo "2058"]
[BlackElo "1988"]
[PlyCount "117"]
[EventDate "2025.02.23"]
[EventType "swiss"]
[EventCountry "MNE"]
[SourceTitle "playchess.com"]
[Source "ChessBase"]
[SourceQuality "1"]
[TimeControl "40/5400+30:1800+30"]

1. e4 {[%emt 0:00:01]} e5 2. Nf3 {[%emt 0:00:11]} Nc6 {[%emt 0:00:27]} 3. Bc4 {[%emt 0:01:18]} h6 {[%emt 0:00:32]} 4. c3 {[%emt 0:00:50]} Nf6 {[%emt 0:00:10]} 5. d3 {[%emt 0:01:41]} d6 {[%emt 0:00:15]} 6. Nbd2 {[%emt 0:00:36]} g6 {[%emt 0:00:23]} 7. O-O {[%emt 0:02:32]} Bg7 {[%emt 0:00:27]} 8. h3 {[%emt 0:04:40]} O-O {[%emt 0:00:51]} 9. Nh2 {[%emt 0:02:36]} Kh7 {[%emt 0:16:36]} 10. Bb3 {[%emt 0:01:58]} Nh5 {[%emt 0:02:52]} 11. Nc4 {[%emt 0:03:12]} Ne7 {[%emt 0:06:41]} 12. Re1 {[%emt 0:20:13]} Be6 {[%emt 0:14:52]} 13. d4 {[%emt 0:08:07]} Qc8 {[%emt 0:25:38]} 14. g4 {[%emt 0:04:57]} Bxc4 {[%emt 0:12:08]} 15. Bxc4 {[%emt 0:00:26]} Nf6 {[%emt 0:00:09]} 16. f4 {[%emt 0:05:45]} exd4 {[%emt 0:09:53]} 17. e5 {[%emt 0:02:55]} dxe5 {[%emt 0:01:25]} 18. fxe5 {[%emt 0:00:27]} Nfd5 {[%emt 0:00:15]} 19. Qxd4 {[%emt 0:01:38]} c6 {[%emt 0:01:23]} 20. Qe4 {[%emt 0:02:39]} Qc7 {[%emt 0:04:14]} 21. Bf1 {[%emt 0:03:14]} Rae8 {[%emt 0:00:36]} 22. c4 {[%emt 0:00:36]} Qb6+ {[%emt 0:00:45]} 23. Kh1 {[%emt 0:00:57]} Nc7 {[%emt 0:00:06]} 24. Qc2 {[%emt 0:03:28]} c5 {[%emt 0:00:49]} 25. Nf3 {[%emt 0:05:06]} Nc6 {[%emt 0:00:11]} 26. Bf4 {[%emt 0:02:48]} Ne6 {[%emt 0:00:08]} 27. Bg3 {[%emt 0:00:20]} Ned4 {[%emt 0:00:27]} 28. Nxd4 {[%emt 0:00:02]} Nxd4 {[%emt 0:00:02]} 29. Qg2 {[%emt 0:01:41]} Re7 {[%emt 0:01:12]} 30. Re4 {[%emt 0:00:37]} Rfe8 {[%emt 0:00:20]} 31. Rae1 {[%emt 0:00:07]} Qc6 {[%emt 0:00:58]} 32. Bd3 {[%emt 0:01:09]} b6 {[%emt 0:00:24]} 33. h4 {[%emt 0:00:59]} Qd7 {[%emt 0:00:48]} 34. Bb1 {[%emt 0:02:10]} Nc6 {[%emt 0:00:17]} 35. h5 {[%emt 0:01:50]} Nxe5 {[%emt 0:00:38]} 36. Qc2 {[%emt 0:05:41]} Qc6 {[%emt 0:00:07]} 37. Qg2 {[%emt 0:01:38]} Qb7 {[%emt 0:00:23]} 38. Bxe5 {[%emt 0:01:18]} Rxe5 {[%emt 0:00:45]} 39. Rxe5 {[%emt 0:01:01]} Qxg2+ {[%emt 0:00:09]} 40. Kxg2 {[%emt 0:00:05]} Bxe5 {[%emt 0:01:25]} 41. b3 {[%emt 0:32:04]} Kg7 {[%emt 0:00:51]} 42. hxg6 {[%emt 0:00:00]} fxg6 {[%emt 0:00:08]} 43. Re2 {[%emt 0:00:00]} Re7 {[%emt 0:01:59]} 44. Be4 {[%emt 0:00:00]} Bf4 {[%emt 0:08:09]} 45. Bf3 {[%emt 0:00:00]} Rxe2+ {[%emt 0:01:01]} 46. Bxe2 {[%emt 0:00:00]} Kf6 {[%emt 0:00:11]} 47. Kf3 {[%emt 0:00:00]} Ke5 {[%emt 0:00:07]} 48. Bd3 {[%emt 0:00:00]} g5 {[%emt 0:00:07]} 49. Bg6 {[%emt 0:00:00]} Kd4 {[%emt 0:00:10]} 50. Ke2 {[%emt 0:00:00]} Kc3 {[%emt 0:00:12]} 51. Kd1 {[%emt 0:00:00]} Kb2 {[%emt 0:00:17]} 52. Bh5 {[%emt 0:00:00]} Kxa2 {[%emt 0:01:16]} 53. Kc2 {[%emt 0:00:00]} Ka3 {[%emt 0:00:07]} 54. Bg6 {[%emt 0:00:00]} Kb4 {[%emt 0:00:09]} 55. Be8 {[%emt 0:00:00]} a6 {[%emt 0:03:31]} 56. Bg6 {[%emt 0:00:00]} b5 {[%emt 0:01:49]} 57. cxb5 {[%emt 0:00:00]} axb5 {[%emt 0:00:02]} 58. Bf7 {[%emt 0:00:00]} c4 {[%emt 0:00:29]} 59. bxc4 {[%emt 0:00:00]} 1/2-1/2

[Event "FIDE World Junior U20-ch Girls 2025"]
[Site "Petrovac"]
[Date "2025.03.02"]
[Round "6.34"]
[White "Hernandez Diaz, Paula Sofia"]
[Black "Shuqja, Klean"]
[Result "0-1"]
[Annotator "NA"]
[ECO "E11"]
[WhiteElo "1972"]
[BlackElo "2049"]
[PlyCount "122"]
[EventDate "2025.02.23"]
[EventType "swiss"]
[EventCountry "MNE"]
[SourceTitle "playchess.com"]
[Source "ChessBase"]
[SourceQuality "1"]
[TimeControl "40/5400+30:1800+30"]

1. d4 {[%emt 0:00:04]} Nf6 {[%emt 0:03:13]} 2. c4 {[%emt 0:00:17]} e6 {[%emt 0:00:01]} 3. Nf3 {[%emt 0:00:14]} Bb4+ {[%emt 0:00:11]} 4. Bd2 {[%emt 0:00:08]} Qe7 {[%emt 0:00:33]} 5. g3 {[%emt 0:00:47]} Nc6 {[%emt 0:02:17]} 6. Nc3 {[%emt 0:02:23]} d6 {[%emt 0:09:29]} 7. d5 {[%emt 0:12:03]} Bxc3 {[%emt 0:06:00]} 8. Bxc3 {[%emt 0:01:39]} Nb8 {[%emt 0:05:32]} 9. Bg2 {[%emt 0:01:33]} e5 {[%emt 0:00:31]} 10. Qc2 {[%emt 0:02:49]} O-O {[%emt 0:09:40]} 11. e4 {[%emt 0:05:10]} a5 {[%emt 0:01:48]} 12. O-O {[%emt 0:03:25]} Nbd7 {[%emt 0:03:31]} 13. b3 {[%emt 0:00:38]} Nc5 {[%emt 0:01:23]} 14. Nd2 {[%emt 0:00:23]} Nh5 {[%emt 0:07:18]} 15. Qd1 {[%emt 0:07:46]} g6 {[%emt 0:07:32]} 16. a3 {[%emt 0:02:23]} Bd7 {[%emt 0:03:14]} 17. Rb1 {[%emt 0:13:01]} f5 {[%emt 0:04:27]} 18. b4 {[%emt 0:01:39]} axb4 {[%emt 0:01:39]} 19. axb4 {[%emt 0:00:01]} Na4 {[%emt 0:08:48]} 20. Ba1 {[%emt 0:01:22]} f4 {[%emt 0:01:07]} 21. Rc1 {[%emt 0:03:40]} b6 {[%emt 0:02:12]} 22. Nb3 {[%emt 0:01:53]} Ng7 {[%emt 0:02:35]} 23. f3 {[%emt 0:06:39]} Qg5 {[%emt 0:02:43]} 24. Qe1 {[%emt 0:02:24]} h5 {[%emt 0:03:00]} 25. Rc2 {[%emt 0:01:45]} Qf6 {[%emt 0:01:52]} 26. gxf4 {[%emt 0:02:47]} Qxf4 {[%emt 0:00:05]} 27. Nc1 {[%emt 0:03:09]} h4 {[%emt 0:04:04]} 28. Nd3 {[%emt 0:04:36]} Qg5 {[%emt 0:00:57]} 29. Qc1 {[%emt 0:04:09]} Qxc1 {[%emt 0:00:44]} 30. Rfxc1 {[%emt 0:00:00]} Nh5 {[%emt 0:02:50]} 31. Kf2 {[%emt 0:01:35]} Rf7 {[%emt 0:02:26]} 32. Ne1 {[%emt 0:04:46]} Raf8 {[%emt 0:01:03]} 33. Ke3 {[%emt 0:01:05]} Nf4 {[%emt 0:01:09]} 34. h3 {[%emt 0:01:41]} g5 {[%emt 0:00:50]} 35. Bf1 {[%emt 0:01:05]} Nxh3 {[%emt 0:02:15]} 36. Bxh3 {[%emt 0:00:32]} Bxh3 {[%emt 0:00:02]} 37. c5 {[%emt 0:01:39]} bxc5 {[%emt 0:00:53]} 38. bxc5 {[%emt 0:00:01]} Nxc5 {[%emt 0:01:03]} 39. Bxe5 {[%emt 0:00:38]} Nb3 {[%emt 0:00:19]} 40. Rb1 {[%emt 0:01:06]} dxe5 {[%emt 0:00:40]} 41. Rxb3 {[%emt 0:30:22]} g4 {[%emt 0:08:26]} 42. Kf2 {[%emt 0:00:00]} gxf3 {[%emt 0:07:00]} 43. Rbc3 {[%emt 0:00:00]} Bg4 {[%emt 0:05:40]} 44. Rxc7 {[%emt 0:00:00]} h3 {[%emt 0:06:28]} 45. Rxf7 {[%emt 0:00:00]} h2 {[%emt 0:01:02]} 46. Rxf8+ {[%emt 0:00:00]} Kxf8 {[%emt 0:00:03]} 47. Nxf3 {[%emt 0:00:00]} h1=Q {[%emt 0:01:39]} 48. Rc3 {[%emt 0:00:00]} Bxf3 {[%emt 0:01:03]} 49. Rxf3+ {[%emt 0:00:00]} Ke7 {[%emt 0:00:04]} 50. Re3 {[%emt 0:00:00]} Kd6 {[%emt 0:00:17]} 51. Re1 {[%emt 0:00:00]} Qh4+ {[%emt 0:00:55]} 52. Kf1 {[%emt 0:00:00]} Kc5 {[%emt 0:01:02]} 53. d6 {[%emt 0:00:00]} Kxd6 {[%emt 0:00:15]} 54. Re3 {[%emt 0:00:00]} Kc5 {[%emt 0:00:22]} 55. Ke2 {[%emt 0:00:00]} Kd4 {[%emt 0:00:15]} 56. Rd3+ {[%emt 0:00:00]} Kxe4 {[%emt 0:00:11]} 57. Ra3 {[%emt 0:00:00]} Qh2+ {[%emt 0:00:10]} 58. Kf1 {[%emt 0:00:00]} Kf4 {[%emt 0:00:18]} 59. Ra4+ {[%emt 0:00:00]} e4 {[%emt 0:00:06]} 60. Ra8 {[%emt 0:00:00]} Kf3 {[%emt 0:00:32]} 61. Rf8+ {[%emt 0:00:00]} Ke3 {[%emt 0:00:08]} 0-1

[Event "FIDE World Junior U20-ch Girls 2025"]
[Site "Petrovac"]
[Date "2025.03.02"]
[Round "6.35"]
[White "Zhou, Shumeng"]
[Black "Braeutigam, Katerina"]
[Result "0-1"]
[Annotator "NA"]
[ECO "C11"]
[WhiteElo "2049"]
[BlackElo "1981"]
[PlyCount "94"]
[EventDate "2025.02.23"]
[EventType "swiss"]
[EventCountry "MNE"]
[SourceTitle "playchess.com"]
[Source "ChessBase"]
[SourceQuality "1"]
[TimeControl "40/5400+30:1800+30"]

1. e4 {[%emt 0:00:02]} e6 {[%emt 0:00:04]} 2. d4 {[%emt 0:00:03]} d5 {[%emt 0:00:04]} 3. Nc3 {[%emt 0:00:03]} Nf6 {[%emt 0:00:09]} 4. e5 {[%emt 0:00:03]} Nfd7 {[%emt 0:00:09]} 5. f4 {[%emt 0:00:02]} c5 {[%emt 0:00:37]} 6. Nf3 {[%emt 0:00:05]} Nc6 {[%emt 0:01:00]} 7. Be3 {[%emt 0:00:04]} a6 {[%emt 0:01:38]} 8. Ne2 {[%emt 0:00:09]} cxd4 {[%emt 0:05:14]} 9. Nexd4 {[%emt 0:01:28]} Be7 {[%emt 0:02:20]} 10. h4 {[%emt 0:05:00]} Qa5+ {[%emt 0:08:35]} 11. c3 {[%emt 0:00:33]} Nxd4 {[%emt 0:03:29]} 12. Bxd4 {[%emt 0:00:47]} b5 {[%emt 0:03:31]} 13. a3 {[%emt 0:04:01]} Qc7 {[%emt 0:07:04]} 14. Bd3 {[%emt 0:02:37]} f5 {[%emt 0:03:53]} 15. exf6 {[%emt 0:02:58]} Bxf6 {[%emt 0:06:05]} 16. Ne5 {[%emt 0:10:53]} Bxe5 {[%emt 0:09:05]} 17. Bxe5 {[%emt 0:00:45]} Nxe5 {[%emt 0:01:10]} 18. Qh5+ {[%emt 0:00:13]} Nf7 {[%emt 0:00:51]} 19. O-O {[%emt 0:00:46]} g6 {[%emt 0:02:42]} 20. Qe2 {[%emt 0:00:22]} Qc5+ {[%emt 0:05:05]} 21. Kh2 {[%emt 0:01:00]} Qe7 {[%emt 0:01:06]} 22. g3 {[%emt 0:00:20]} Nd6 {[%emt 0:06:31]} 23. Qe5 {[%emt 0:04:11]} O-O {[%emt 0:04:22]} 24. h5 {[%emt 0:06:59]} Nf5 {[%emt 0:07:37]} 25. Rae1 {[%emt 0:05:50]} Qg7 {[%emt 0:03:35]} 26. g4 {[%emt 0:06:59]} Qxe5 {[%emt 0:01:12]} 27. Rxe5 {[%emt 0:05:56]} Ne7 {[%emt 0:00:37]} 28. hxg6 {[%emt 0:03:45]} hxg6 {[%emt 0:01:08]} 29. Rg5 {[%emt 0:02:08]} Kg7 {[%emt 0:00:46]} 30. Kg3 {[%emt 0:01:07]} Bd7 {[%emt 0:01:24]} 31. Re1 {[%emt 0:02:58]} Rf7 {[%emt 0:01:14]} 32. Rge5 {[%emt 0:01:51]} Raf8 {[%emt 0:01:56]} 33. Rf1 {[%emt 0:00:09]} Nc6 {[%emt 0:00:59]} 34. Rg5 {[%emt 0:00:19]} Rf6 {[%emt 0:01:05]} 35. Re1 {[%emt 0:00:04]} Nd8 {[%emt 0:01:37]} 36. f5 {[%emt 0:07:03]} exf5 {[%emt 0:01:19]} 37. gxf5 {[%emt 0:00:08]} Bxf5 {[%emt 0:00:47]} 38. Bxf5 {[%emt 0:00:05]} Rxf5 {[%emt 0:00:11]} 39. Re7+ {[%emt 0:00:10]} R8f7 {[%emt 0:03:23]} 40. Rxf5 {[%emt 0:00:05]} gxf5 {[%emt 0:00:37]} 41. Re5 {[%emt 0:30:02]} f4+ {[%emt 0:31:29]} 42. Kf3 {[%emt 0:00:08]} Kg6 {[%emt 0:00:41]} 43. Rxd5 {[%emt 0:00:09]} Ne6 {[%emt 0:00:16]} 44. b3 {[%emt 0:01:26]} Rf5 {[%emt 0:01:08]} 45. Rd6 {[%emt 0:00:08]} Rf6 {[%emt 0:00:12]} 46. Rd5 {[%emt 0:00:04]} Ng5+ {[%emt 0:00:48]} 47. Kg4 {[%emt 0:02:11]} f3 {[%emt 0:01:30]} 0-1

[Event "FIDE World Junior U20-ch Girls 2025"]
[Site "Petrovac"]
[Date "2025.03.02"]
[Round "6.36"]
[White "Morales Perez, Ghisell"]
[Black "Huseynova, Lala"]
[Result "0-1"]
[Annotator "NA"]
[ECO "B90"]
[WhiteElo "1902"]
[BlackElo "2032"]
[PlyCount "78"]
[EventDate "2025.02.23"]
[EventType "swiss"]
[EventCountry "MNE"]
[SourceTitle "playchess.com"]
[Source "ChessBase"]
[SourceQuality "1"]
[TimeControl "40/5400+30:1800+30"]

1. e4 {[%emt 0:00:03]} c5 {[%emt 0:00:02]} 2. Nf3 {[%emt 0:00:06]} d6 {[%emt 0:00:02]} 3. d4 {[%emt 0:00:06]} cxd4 {[%emt 0:00:03]} 4. Nxd4 {[%emt 0:00:07]} Nf6 {[%emt 0:00:02]} 5. Nc3 {[%emt 0:00:07]} a6 {[%emt 0:00:02]} 6. h3 {[%emt 0:00:06]} e5 {[%emt 0:00:46]} 7. Nb3 {[%emt 0:00:08]} h5 {[%emt 0:00:31]} 8. Bg5 {[%emt 0:00:25]} Be6 {[%emt 0:00:36]} 9. Be2 {[%emt 0:06:26]} Nbd7 {[%emt 0:01:22]} 10. O-O {[%emt 0:06:59]} Be7 {[%emt 0:03:46]} 11. Qd3 {[%emt 0:05:33]} b5 {[%emt 0:06:55]} 12. Rad1 {[%emt 0:17:19]} Rc8 {[%emt 0:05:43]} 13. a3 {[%emt 0:21:24]} Qc7 {[%emt 0:11:03]} 14. f4 {[%emt 0:07:52]} Qa7+ {[%emt 0:08:20]} 15. Kh1 {[%emt 0:01:31]} Bc4 {[%emt 0:23:37]} 16. Qf3 {[%emt 0:05:51]} h4 {[%emt 0:03:36]} 17. Kh2 {[%emt 0:03:37]} Qb6 {[%emt 0:05:11]} 18. f5 {[%emt 0:04:01]} a5 {[%emt 0:04:31]} 19. Be3 {[%emt 0:01:21]} Qa6 {[%emt 0:01:53]} 20. Bxc4 {[%emt 0:00:33]} bxc4 {[%emt 0:00:01]} 21. Nd2 {[%emt 0:00:44]} Qb7 {[%emt 0:03:57]} 22. Rb1 {[%emt 0:00:20]} Qc6 {[%emt 0:02:08]} 23. Rfd1 {[%emt 0:02:45]} Nb6 {[%emt 0:02:30]} 24. Bxb6 {[%emt 0:01:41]} Qxb6 {[%emt 0:00:01]} 25. Nf1 {[%emt 0:00:14]} Bd8 {[%emt 0:05:01]} 26. Ne3 {[%emt 0:00:43]} Nh5 {[%emt 0:01:08]} 27. Ned5 {[%emt 0:01:14]} Qc6 {[%emt 0:00:47]} 28. Qg4 {[%emt 0:01:17]} Qc5 {[%emt 0:01:51]} 29. Rd2 {[%emt 0:02:42]} Rb8 {[%emt 0:00:39]} 30. a4 {[%emt 0:07:48]} Kf8 {[%emt 0:02:39]} 31. Re2 {[%emt 0:01:51]} Ng3 {[%emt 0:00:18]} 32. Rd2 {[%emt 0:00:36]} Rh5 {[%emt 0:02:36]} 33. f6 {[%emt 0:00:37]} gxf6 {[%emt 0:00:08]} 34. Nb5 {[%emt 0:00:21]} f5 {[%emt 0:00:39]} 35. exf5 {[%emt 0:00:11]} Rxf5 {[%emt 0:00:10]} 36. Rbd1 {[%emt 0:00:56]} Rf1 {[%emt 0:01:33]} 37. Nd4 {[%emt 0:00:49]} exd4 {[%emt 0:00:29]} 38. Rxf1 {[%emt 0:00:27]} Nxf1+ {[%emt 0:00:02]} 39. Kh1 {[%emt 0:00:22]} Qxd5 {[%emt 0:00:46]} 0-1

[Event "FIDE World Junior U20-ch Girls 2025"]
[Site "Petrovac"]
[Date "2025.03.02"]
[Round "6.37"]
[White "Zito, Enrica"]
[Black "Radenkovic, Mila"]
[Result "1-0"]
[Annotator "NA"]
[ECO "B08"]
[WhiteElo "1941"]
[BlackElo "2027"]
[PlyCount "57"]
[EventDate "2025.02.23"]
[EventType "swiss"]
[EventCountry "MNE"]
[SourceTitle "playchess.com"]
[Source "ChessBase"]
[SourceQuality "1"]
[TimeControl "40/5400+30:1800+30"]

1. e4 {[%emt 0:00:02]} g6 {[%emt 0:00:12]} 2. d4 {[%emt 0:00:08]} Bg7 {[%emt 0:00:03]} 3. Nc3 {[%emt 0:01:20]} d6 {[%emt 0:00:05]} 4. Nf3 {[%emt 0:01:29]} Nf6 {[%emt 0:00:47]} 5. h3 {[%emt 0:00:52]} O-O {[%emt 0:00:53]} 6. Bg5 {[%emt 0:01:10]} c6 {[%emt 0:04:27]} 7. Qd2 {[%emt 0:02:56]} b5 {[%emt 0:04:39]} 8. Bd3 {[%emt 0:00:44]} Bb7 {[%emt 0:05:04]} 9. Bh6 {[%emt 0:05:36]} b4 {[%emt 0:03:56]} 10. Ne2 {[%emt 0:00:15]} c5 {[%emt 0:00:19]} 11. Bxg7 {[%emt 0:02:02]} Kxg7 {[%emt 0:00:02]} 12. Ng3 {[%emt 0:02:22]} Re8 {[%emt 0:13:42]} 13. dxc5 {[%emt 0:10:01]} dxc5 {[%emt 0:02:00]} 14. O-O-O {[%emt 0:01:27]} Ng8 {[%emt 0:07:58]} 15. Bb5 {[%emt 0:09:20]} Nc6 {[%emt 0:04:01]} 16. Qf4 {[%emt 0:02:17]} Qb6 {[%emt 0:02:58]} 17. Bc4 {[%emt 0:01:49]} f6 {[%emt 0:01:26]} 18. e5 {[%emt 0:01:11]} Rad8 {[%emt 0:01:27]} 19. Ne4 {[%emt 0:13:51]} Na5 {[%emt 0:06:15]} 20. Rxd8 {[%emt 0:18:15]} Rxd8 {[%emt 0:00:21]} 21. Bxg8 {[%emt 0:03:19]} f5 {[%emt 0:06:34]} 22. Neg5 {[%emt 0:01:40]} Rxg8 {[%emt 0:00:27]} 23. Nxh7 {[%emt 0:00:35]} Bxf3 {[%emt 0:04:29]} 24. gxf3 {[%emt 0:00:04]} Kxh7 {[%emt 0:09:35]} 25. Qh4+ {[%emt 0:00:04]} Kg7 {[%emt 0:00:05]} 26. Qxe7+ {[%emt 0:00:03]} Kh8 {[%emt 0:01:53]} 27. Rd1 {[%emt 0:00:14]} g5 {[%emt 0:11:58]} 28. Rd6 {[%emt 0:00:05]} Rg7 {[%emt 0:00:04]} 29. Qf8+ {[%emt 0:00:12]} 1-0